[Event "Titled Tuesday Blitz November 07 Late 2023"]
[White "Bueno, Alfeu Junior Varela"]
[Black "Elbebiber"]
[WhiteFideId "2108879"]
[WhiteElo "2319"]
[BlackElo "2106"]
[Result "0-1"]
[Round "7"]
[TimeControl "180+1"]
[Date "2023.11.07"]
[WhiteClock "0:00:00"]
[BlackClock "0:00:16"]
[Board "116"]

1. e4 {[%clk 0:02:55]}  d5 {[%clk 0:02:58]} 2. exd5 {[%clk 0:02:55]}  Nf6 {[%clk 0:02:57]} 3. Bb5+ {[%clk 0:02:54]}  Bd7 {[%clk 0:02:55]} 4. Be2 {[%clk 0:02:53]}  Nxd5 {[%clk 0:02:52]} 5. d4 {[%clk 0:02:54]}  Bf5 {[%clk 0:02:38]} 6. a3 {[%clk 0:02:52]}  e6 {[%clk 0:02:35]} 7. Nf3 {[%clk 0:02:53]}  Be7 {[%clk 0:02:30]} 8. c4 {[%clk 0:02:53]}  Nf6 {[%clk 0:02:30]} 9. Nc3 {[%clk 0:02:53]}  O-O {[%clk 0:02:29]} 10. O-O {[%clk 0:02:53]}  Ne4 {[%clk 0:02:22]} 11. Nxe4 {[%clk 0:02:43]}  Bxe4 {[%clk 0:02:22]} 12. Be3 {[%clk 0:02:42]}  Nd7 {[%clk 0:02:13]} 13. Nd2 {[%clk 0:02:35]}  Bg6 {[%clk 0:02:12]} 14. Bf3 {[%clk 0:02:35]}  c6 {[%clk 0:02:12]} 15. Qb3 {[%clk 0:02:35]}  Qb6 {[%clk 0:02:09]} 16. Qc3 {[%clk 0:02:34]}  Qc7 {[%clk 0:02:07]} 17. b4 {[%clk 0:02:32]}  Bf6 {[%clk 0:02:04]} 18. Qb3 {[%clk 0:02:31]}  Rfd8 {[%clk 0:01:58]} 19. Ne4 {[%clk 0:02:30]}  Be7 {[%clk 0:01:58]} 20. Rad1 {[%clk 0:02:18]}  Nf6 {[%clk 0:01:58]} 21. Nc5 {[%clk 0:02:18]}  Rac8 {[%clk 0:01:46]} 22. h3 {[%clk 0:02:08]}  h6 {[%clk 0:01:46]} 23. a4 {[%clk 0:02:02]}  Nd7 {[%clk 0:01:42]} 24. Nd3 {[%clk 0:01:52]}  Nf6 {[%clk 0:01:40]} 25. Ne5 {[%clk 0:01:51]}  Be4 {[%clk 0:01:38]} 26. Be2 {[%clk 0:01:47]}  b6 {[%clk 0:01:27]} 27. f4 {[%clk 0:01:33]}  a5 {[%clk 0:01:15]} 28. b5 {[%clk 0:01:31]}  c5 {[%clk 0:01:10]} 29. Bf3 {[%clk 0:01:24]}  Bxf3 {[%clk 0:01:05]} 30. Nxf3 {[%clk 0:01:22]}  cxd4 {[%clk 0:01:03]} 31. Bxd4 {[%clk 0:01:20]}  Bc5 {[%clk 0:01:00]} 32. Qe3 {[%clk 0:00:19]}  Bxd4 {[%clk 0:00:52]} 33. Rxd4 {[%clk 0:00:20]}  Rxd4 {[%clk 0:00:50]} 34. Nxd4 {[%clk 0:00:21]}  Qxc4 {[%clk 0:00:47]} 35. Nc6 {[%clk 0:00:21]}  Nd5 {[%clk 0:00:41]} 36. Qe5 {[%clk 0:00:14]}  Qc5+ {[%clk 0:00:39]} 37. Kh2 {[%clk 0:00:13]}  Qf8 {[%clk 0:00:36]} 38. Rf3 {[%clk 0:00:12]}  Nf6 {[%clk 0:00:34]} 39. Rg3 {[%clk 0:00:11]}  Kh8 {[%clk 0:00:33]} 40. Qd4 {[%clk 0:00:07]}  Nd5 {[%clk 0:00:32]} 41. f5 {[%clk 0:00:07]}  Nf6 {[%clk 0:00:30]} 42. fxe6 {[%clk 0:00:05]}  fxe6 {[%clk 0:00:30]} 43. Qxb6 {[%clk 0:00:06]}  Qf7 {[%clk 0:00:29]} 44. Qxa5 {[%clk 0:00:05]}  Ne4 {[%clk 0:00:27]} 45. Rf3 {[%clk 0:00:04]}  Qg6 {[%clk 0:00:25]} 46. Ne5 {[%clk 0:00:03]}  Qe8 {[%clk 0:00:21]} 47. Qa7 {[%clk 0:00:02]}  Nf6 {[%clk 0:00:20]} 48. Qf7 {[%clk 0:00:02]}  Qxf7 {[%clk 0:00:20]} 49. Nxf7+ {[%clk 0:00:03]}  Kh7 {[%clk 0:00:21]} 50. Nd6 {[%clk 0:00:03]}  Ra8 {[%clk 0:00:20]} 51. Ra3 {[%clk 0:00:03]}  Nd5 {[%clk 0:00:20]} 52. a5 {[%clk 0:00:03]}  g6 {[%clk 0:00:17]} 53. a6 {[%clk 0:00:03]}  Kg7 {[%clk 0:00:18]} 54. a7 {[%clk 0:00:03]}  Nb6 {[%clk 0:00:17]} 55. Nb7 {[%clk 0:00:02]}  Nd5 {[%clk 0:00:16]} 56. Ra6 {[%clk 0:00:02]}  Nc7 {[%clk 0:00:16]} 57. Rc6 {[%clk 0:00:00]}  Nxb5 {[%clk 0:00:16]} 0-1


[Site "https://www.chess.com"]

[Event "Titled Tuesday Blitz November 07 Late 2023"]
[White "Milosevic, Milos"]
[Black "Silvestre, Christian"]
[WhiteFideId "964875"]
[BlackFideId "30956269"]
[WhiteElo "2497"]
[BlackElo "2207"]
[Result "1-0"]
[Round "7"]
[TimeControl "180+1"]
[Date "2023.11.07"]
[WhiteClock "0:00:06"]
[BlackClock "0:00:24"]
[Board "117"]

1. d4 {[%clk 0:03:00]}  e5 {[%clk 0:02:59]} 2. dxe5 {[%clk 0:02:59]}  Nc6 {[%clk 0:02:59]} 3. Nf3 {[%clk 0:02:56]}  Qe7 {[%clk 0:02:59]} 4. Nc3 {[%clk 0:02:28]}  Nxe5 {[%clk 0:02:58]} 5. Nd5 {[%clk 0:02:29]}  Nxf3+ {[%clk 0:02:57]} 6. gxf3 {[%clk 0:02:29]}  Qd8 {[%clk 0:02:57]} 7. Bf4 {[%clk 0:02:30]}  d6 {[%clk 0:02:56]} 8. e4 {[%clk 0:02:28]}  Ne7 {[%clk 0:02:56]} 9. Bc4 {[%clk 0:02:20]}  Be6 {[%clk 0:02:55]} 10. Bg5 {[%clk 0:01:45]}  Qd7 {[%clk 0:02:44]} 11. f4 {[%clk 0:01:28]}  Bxd5 {[%clk 0:02:39]} 12. Bxd5 {[%clk 0:01:26]}  Nxd5 {[%clk 0:02:33]} 13. Qxd5 {[%clk 0:01:27]}  Qc6 {[%clk 0:02:26]} 14. O-O-O {[%clk 0:01:27]}  Qxd5 {[%clk 0:02:26]} 15. Rxd5 {[%clk 0:01:27]}  f6 {[%clk 0:02:22]} 16. Bh4 {[%clk 0:01:28]}  Kf7 {[%clk 0:02:21]} 17. Rhd1 {[%clk 0:01:28]}  Re8 {[%clk 0:02:20]} 18. e5 {[%clk 0:01:28]}  Be7 {[%clk 0:02:02]} 19. Bg3 {[%clk 0:01:17]}  h5 {[%clk 0:01:45]} 20. exd6 {[%clk 0:01:02]}  Bxd6 {[%clk 0:01:44]} 21. f5 {[%clk 0:01:02]}  Bxg3 {[%clk 0:01:37]} 22. fxg3 {[%clk 0:00:58]}  Re7 {[%clk 0:01:36]} 23. b3 {[%clk 0:00:41]}  h4 {[%clk 0:01:36]} 24. R1d4 {[%clk 0:00:34]}  hxg3 {[%clk 0:01:35]} 25. hxg3 {[%clk 0:00:34]}  Rh1+ {[%clk 0:01:33]} 26. Rd1 {[%clk 0:00:34]}  Rh2 {[%clk 0:01:33]} 27. R1d4 {[%clk 0:00:33]}  Rg2 {[%clk 0:01:29]} 28. Rg4 {[%clk 0:00:32]}  Ke8 {[%clk 0:01:23]} 29. Rd3 {[%clk 0:00:18]}  b6 {[%clk 0:01:20]} 30. Rh4 {[%clk 0:00:17]}  Kf7 {[%clk 0:01:17]} 31. Rd8 {[%clk 0:00:11]}  Ree2 {[%clk 0:01:10]} 32. Rd7+ {[%clk 0:00:09]}  Re7 {[%clk 0:01:07]} 33. Rd8 {[%clk 0:00:09]}  Rf2 {[%clk 0:01:06]} 34. g4 {[%clk 0:00:08]}  Re1+ {[%clk 0:01:02]} 35. Kb2 {[%clk 0:00:07]}  Ree2 {[%clk 0:01:00]} 36. Rhh8 {[%clk 0:00:07]}  Rxc2+ {[%clk 0:00:58]} 37. Ka3 {[%clk 0:00:08]}  Rxa2+ {[%clk 0:00:57]} 38. Kb4 {[%clk 0:00:09]}  Rf4+ {[%clk 0:00:28]} 39. Kb5 {[%clk 0:00:08]}  Rxg4 {[%clk 0:00:24]} 40. Rd7# {[%clk 0:00:06]} 1-0


[Site "https://www.chess.com"]

[Event "Titled Tuesday Blitz November 07 Late 2023"]
[White "Petersson, Kjell"]
[Black "Zampronha, Wladimir Camilo"]
[WhiteFideId "1705148"]
[BlackFideId "2103087"]
[WhiteElo "2135"]
[BlackElo "2304"]
[Result "0-1"]
[Round "7"]
[TimeControl "180+1"]
[Date "2023.11.07"]
[WhiteClock "0:00:00"]
[BlackClock "0:00:32"]
[Board "118"]

1. d4 {[%clk 0:03:00]}  Nf6 {[%clk 0:02:56]} 2. Bf4 {[%clk 0:03:01]}  c5 {[%clk 0:02:54]} 3. d5 {[%clk 0:03:00]}  e6 {[%clk 0:02:51]} 4. c4 {[%clk 0:02:58]}  exd5 {[%clk 0:02:51]} 5. cxd5 {[%clk 0:02:58]}  d6 {[%clk 0:02:51]} 6. Nc3 {[%clk 0:02:58]}  g6 {[%clk 0:02:51]} 7. e4 {[%clk 0:02:55]}  a6 {[%clk 0:02:50]} 8. a4 {[%clk 0:02:55]}  Bg7 {[%clk 0:02:51]} 9. Bd3 {[%clk 0:02:47]}  O-O {[%clk 0:02:51]} 10. h3 {[%clk 0:02:46]}  Re8 {[%clk 0:02:51]} 11. Nf3 {[%clk 0:02:43]}  c4 {[%clk 0:02:52]} 12. Bc2 {[%clk 0:02:41]}  Qb6 {[%clk 0:02:46]} 13. Rb1 {[%clk 0:02:22]}  Nbd7 {[%clk 0:02:44]} 14. O-O {[%clk 0:02:20]}  Nc5 {[%clk 0:02:43]} 15. Re1 {[%clk 0:02:18]}  Bd7 {[%clk 0:02:38]} 16. Nd2 {[%clk 0:02:08]}  Qb4 {[%clk 0:02:28]} 17. Qe2 {[%clk 0:01:43]}  Nxa4 {[%clk 0:02:00]} 18. Bxa4 {[%clk 0:01:38]}  Bxa4 {[%clk 0:02:01]} 19. Qxc4 {[%clk 0:01:18]}  Qxc4 {[%clk 0:01:50]} 20. Nxc4 {[%clk 0:01:19]}  Bc2 {[%clk 0:01:50]} 21. Nxd6 {[%clk 0:01:07]}  Bxb1 {[%clk 0:01:48]} 22. Nxe8 {[%clk 0:01:07]}  Rxe8 {[%clk 0:01:44]} 23. Rxb1 {[%clk 0:00:56]}  Nxe4 {[%clk 0:01:44]} 24. Nxe4 {[%clk 0:00:32]}  Rxe4 {[%clk 0:01:43]} 25. Bc7 {[%clk 0:00:27]}  Rd4 {[%clk 0:01:30]} 26. d6 {[%clk 0:00:26]}  Be5 {[%clk 0:01:28]} 27. Re1 {[%clk 0:00:15]}  Bxd6 {[%clk 0:01:28]} 28. Re8+ {[%clk 0:00:12]}  Kg7 {[%clk 0:01:28]} 29. Bxd6 {[%clk 0:00:10]}  Rxd6 {[%clk 0:01:27]} 30. Re7 {[%clk 0:00:07]}  Rb6 {[%clk 0:01:26]} 31. Re2 {[%clk 0:00:07]}  Kf6 {[%clk 0:01:23]} 32. f3 {[%clk 0:00:07]}  Rc6 {[%clk 0:01:22]} 33. Kf2 {[%clk 0:00:07]}  b5 {[%clk 0:01:22]} 34. Rd2 {[%clk 0:00:06]}  Ke7 {[%clk 0:01:19]} 35. Ke3 {[%clk 0:00:07]}  Re6+ {[%clk 0:01:18]} 36. Kf4 {[%clk 0:00:06]}  h6 {[%clk 0:01:17]} 37. h4 {[%clk 0:00:05]}  a5 {[%clk 0:01:10]} 38. Rd5 {[%clk 0:00:05]}  Rb6 {[%clk 0:01:05]} 39. g4 {[%clk 0:00:04]}  Ke6 {[%clk 0:01:06]} 40. Re5+ {[%clk 0:00:03]}  Kd6 {[%clk 0:01:04]} 41. Re8 {[%clk 0:00:02]}  a4 {[%clk 0:01:02]} 42. g5 {[%clk 0:00:02]}  hxg5+ {[%clk 0:00:56]} 43. hxg5 {[%clk 0:00:01]}  b4 {[%clk 0:00:37]} 44. Ra8 {[%clk 0:00:02]}  a3 {[%clk 0:00:38]} 45. bxa3 {[%clk 0:00:02]}  b3 {[%clk 0:00:38]} 46. Rd8+ {[%clk 0:00:01]}  Kc5 {[%clk 0:00:34]} 47. Rd1 {[%clk 0:00:02]}  b2 {[%clk 0:00:34]} 48. Rb1 {[%clk 0:00:03]}  Kc4 {[%clk 0:00:33]} 49. Ke3 {[%clk 0:00:03]}  Kc3 {[%clk 0:00:33]} 50. Ke2 {[%clk 0:00:02]}  Kc2 {[%clk 0:00:32]} 51. Rd1 {[%clk 0:00:01]}  b1=Q {[%clk 0:00:32]} 52. Rxb1 {[%clk 0:00:00]}  Rxb1 {[%clk 0:00:32]} 0-1


[Site "https://www.chess.com"]

[Event "Titled Tuesday Blitz November 07 Late 2023"]
[White "Yushko, Olga"]
[Black "Broca Jimenez, Fernando"]
[WhiteFideId "14114500"]
[BlackFideId "5104742"]
[WhiteElo "2105"]
[BlackElo "2244"]
[Result "1-0"]
[Round "7"]
[TimeControl "180+1"]
[Date "2023.11.07"]
[WhiteClock "0:01:09"]
[BlackClock "0:00:04"]
[Board "119"]

1. d4 {[%clk 0:02:58]}  Nf6 {[%clk 0:02:59]} 2. c4 {[%clk 0:02:58]}  e6 {[%clk 0:02:59]} 3. Nc3 {[%clk 0:02:58]}  Bb4 {[%clk 0:03:00]} 4. Qc2 {[%clk 0:02:59]}  c5 {[%clk 0:02:59]} 5. dxc5 {[%clk 0:03:00]}  Bxc5 {[%clk 0:02:57]} 6. Nf3 {[%clk 0:03:00]}  O-O {[%clk 0:02:56]} 7. Bg5 {[%clk 0:03:01]}  Nc6 {[%clk 0:02:56]} 8. e3 {[%clk 0:03:02]}  h6 {[%clk 0:02:54]} 9. Bh4 {[%clk 0:03:01]}  g5 {[%clk 0:02:42]} 10. Bg3 {[%clk 0:03:01]}  d5 {[%clk 0:02:42]} 11. cxd5 {[%clk 0:02:57]}  Nxd5 {[%clk 0:02:41]} 12. Be2 {[%clk 0:02:56]}  Nxc3 {[%clk 0:02:34]} 13. bxc3 {[%clk 0:02:57]}  b6 {[%clk 0:02:25]} 14. O-O {[%clk 0:02:56]}  Bb7 {[%clk 0:02:25]} 15. Rfd1 {[%clk 0:02:55]}  Qf6 {[%clk 0:02:23]} 16. Nd4 {[%clk 0:02:51]}  Rac8 {[%clk 0:02:02]} 17. Qa4 {[%clk 0:02:46]}  Rfd8 {[%clk 0:01:47]} 18. Nxc6 {[%clk 0:02:41]}  Bxc6 {[%clk 0:01:48]} 19. Qxa7 {[%clk 0:02:35]}  Qxc3 {[%clk 0:01:28]} 20. Rac1 {[%clk 0:02:26]}  Rxd1+ {[%clk 0:01:01]} 21. Rxd1 {[%clk 0:02:27]}  Qc2 {[%clk 0:00:52]} 22. Bh5 {[%clk 0:02:19]}  Rf8 {[%clk 0:00:41]} 23. h3 {[%clk 0:02:08]}  Qe4 {[%clk 0:00:36]} 24. Bf3 {[%clk 0:02:06]}  Qc2 {[%clk 0:00:36]} 25. Bh5 {[%clk 0:02:03]}  Qe4 {[%clk 0:00:30]} 26. Bf3 {[%clk 0:02:03]}  Qc2 {[%clk 0:00:28]} 27. Re1 {[%clk 0:01:46]}  Ra8 {[%clk 0:00:20]} 28. Qc7 {[%clk 0:01:41]}  Bxf3 {[%clk 0:00:20]} 29. gxf3 {[%clk 0:01:41]}  Qxa2 {[%clk 0:00:21]} 30. Qe5 {[%clk 0:01:32]}  Qd5 {[%clk 0:00:20]} 31. Qf6 {[%clk 0:01:31]}  Qd8 {[%clk 0:00:12]} 32. Qxh6 {[%clk 0:01:28]}  Bf8 {[%clk 0:00:11]} 33. Qh5 {[%clk 0:01:26]}  Bg7 {[%clk 0:00:11]} 34. f4 {[%clk 0:01:23]}  gxf4 {[%clk 0:00:10]} 35. Bxf4 {[%clk 0:01:22]}  Qd2 {[%clk 0:00:09]} 36. Rd1 {[%clk 0:01:22]}  Ra1 {[%clk 0:00:06]} 37. Rxa1 {[%clk 0:01:18]}  Bxa1 {[%clk 0:00:07]} 38. Qg5+ {[%clk 0:01:17]}  Kf8 {[%clk 0:00:06]} 39. Qh6+ {[%clk 0:01:14]}  Ke7 {[%clk 0:00:04]} 40. Bg5+ {[%clk 0:01:12]}  Bf6 {[%clk 0:00:05]} 41. Qxf6+ {[%clk 0:01:11]}  Kd6 {[%clk 0:00:05]} 42. Qd8+ {[%clk 0:01:10]}  Kc6 {[%clk 0:00:04]} 43. Qxd2 {[%clk 0:01:09]} 1-0


[Site "https://www.chess.com"]

[Event "Titled Tuesday Blitz November 07 Late 2023"]
[White "Feliz Dotel, Dewar Bienvenido"]
[Black "Mirza, Diana"]
[WhiteFideId "6402801"]
[BlackFideId "2503999"]
[WhiteElo "2147"]
[BlackElo "1989"]
[Result "1-0"]
[Round "7"]
[TimeControl "180+1"]
[Date "2023.11.07"]
[WhiteClock "0:00:09"]
[BlackClock "0:00:00"]
[Board "123"]

1. d4 {[%clk 0:02:59]}  Nf6 {[%clk 0:02:59]} 2. e3 {[%clk 0:02:59]}  g6 {[%clk 0:03:00]} 3. Nf3 {[%clk 0:02:59]}  Bg7 {[%clk 0:03:00]} 4. Be2 {[%clk 0:02:59]}  O-O {[%clk 0:03:01]} 5. b4 {[%clk 0:02:58]}  a5 {[%clk 0:03:00]} 6. b5 {[%clk 0:02:54]}  b6 {[%clk 0:02:59]} 7. c4 {[%clk 0:02:54]}  Bb7 {[%clk 0:02:59]} 8. Bb2 {[%clk 0:02:51]}  d6 {[%clk 0:03:00]} 9. O-O {[%clk 0:02:51]}  Nbd7 {[%clk 0:03:00]} 10. Nc3 {[%clk 0:02:51]}  e5 {[%clk 0:02:59]} 11. a4 {[%clk 0:02:49]}  exd4 {[%clk 0:02:45]} 12. Nxd4 {[%clk 0:02:49]}  Nc5 {[%clk 0:02:44]} 13. Bf3 {[%clk 0:02:45]}  Nfe4 {[%clk 0:02:39]} 14. Nxe4 {[%clk 0:02:44]}  Nxe4 {[%clk 0:02:40]} 15. Qc2 {[%clk 0:02:33]}  Nc5 {[%clk 0:02:29]} 16. Bxb7 {[%clk 0:02:31]}  Nxb7 {[%clk 0:02:29]} 17. Nc6 {[%clk 0:02:31]}  Qd7 {[%clk 0:02:28]} 18. Bd4 {[%clk 0:02:14]}  Nd8 {[%clk 0:02:15]} 19. Bxg7 {[%clk 0:02:11]}  Kxg7 {[%clk 0:02:13]} 20. Qc3+ {[%clk 0:02:05]}  f6 {[%clk 0:02:09]} 21. Nxd8 {[%clk 0:01:56]}  Raxd8 {[%clk 0:02:07]} 22. Rad1 {[%clk 0:01:57]}  Qg4 {[%clk 0:02:06]} 23. h3 {[%clk 0:01:54]}  Qg5 {[%clk 0:02:05]} 24. Rd5 {[%clk 0:01:53]}  Qh6 {[%clk 0:02:00]} 25. Rfd1 {[%clk 0:01:39]}  Rde8 {[%clk 0:01:59]} 26. Qd4 {[%clk 0:01:39]}  Re5 {[%clk 0:01:58]} 27. Qg4 {[%clk 0:01:32]}  f5 {[%clk 0:01:46]} 28. Qg3 {[%clk 0:01:22]}  Rfe8 {[%clk 0:01:17]} 29. c5 {[%clk 0:01:17]}  bxc5 {[%clk 0:01:03]} 30. b6 {[%clk 0:01:15]}  cxb6 {[%clk 0:00:57]} 31. Rxd6 {[%clk 0:01:15]}  R8e7 {[%clk 0:00:30]} 32. Rxb6 {[%clk 0:01:10]}  c4 {[%clk 0:00:22]} 33. Rc6 {[%clk 0:01:03]}  Qh5 {[%clk 0:00:21]} 34. Rc1 {[%clk 0:00:48]}  Qe2 {[%clk 0:00:02]} 35. R6xc4 {[%clk 0:00:41]}  Qd3 {[%clk 0:00:02]} 36. Rc7 {[%clk 0:00:35]}  Qe4 {[%clk 0:00:02]} 37. R1c4 {[%clk 0:00:30]}  Qd5 {[%clk 0:00:00]} 38. Rd4 {[%clk 0:00:09]} 1-0


[Site "https://www.chess.com"]

[Event "Titled Tuesday Blitz November 07 Late 2023"]
[White "Freeeeeeeeeeeeeeeeee"]
[Black "Smirnov, Timofey"]
[BlackFideId "24176427"]
[WhiteElo "2018"]
[BlackElo "2113"]
[Result "1-0"]
[Round "7"]
[TimeControl "180+1"]
[Date "2023.11.07"]
[WhiteClock "0:01:05"]
[BlackClock "0:00:07"]
[Board "126"]

1. e4 {[%clk 0:02:56]}  e5 {[%clk 0:02:59]} 2. Nf3 {[%clk 0:02:56]}  Nf6 {[%clk 0:02:59]} 3. d3 {[%clk 0:02:56]}  Bc5 {[%clk 0:02:47]} 4. Nxe5 {[%clk 0:02:55]}  Nc6 {[%clk 0:02:47]} 5. Nf3 {[%clk 0:02:52]}  Ng4 {[%clk 0:02:30]} 6. d4 {[%clk 0:02:50]}  Nxd4 {[%clk 0:02:00]} 7. Nxd4 {[%clk 0:02:48]}  Qh4 {[%clk 0:01:59]} 8. g3 {[%clk 0:02:42]}  Qf6 {[%clk 0:01:47]} 9. Qxg4 {[%clk 0:02:04]}  Bxd4 {[%clk 0:01:47]} 10. Qf4 {[%clk 0:02:04]}  Bxb2 {[%clk 0:01:18]} 11. Qxf6 {[%clk 0:01:59]}  Bxf6 {[%clk 0:01:18]} 12. c3 {[%clk 0:01:58]}  O-O {[%clk 0:01:17]} 13. Bg2 {[%clk 0:01:57]}  d6 {[%clk 0:01:15]} 14. O-O {[%clk 0:01:57]}  Be6 {[%clk 0:01:04]} 15. Be3 {[%clk 0:01:56]}  Rab8 {[%clk 0:00:58]} 16. Bd4 {[%clk 0:01:56]}  Bxd4 {[%clk 0:00:49]} 17. cxd4 {[%clk 0:01:56]}  Bc4 {[%clk 0:00:49]} 18. Rc1 {[%clk 0:01:56]}  Bd3 {[%clk 0:00:46]} 19. Rxc7 {[%clk 0:01:53]}  Rbc8 {[%clk 0:00:40]} 20. Rxc8 {[%clk 0:01:51]}  Rxc8 {[%clk 0:00:41]} 21. Nd2 {[%clk 0:01:52]}  Rc2 {[%clk 0:00:40]} 22. Nb3 {[%clk 0:01:48]}  g6 {[%clk 0:00:32]} 23. f3 {[%clk 0:01:10]}  Kf8 {[%clk 0:00:23]} 24. h4 {[%clk 0:01:09]}  h5 {[%clk 0:00:22]} 25. Bf1 {[%clk 0:01:09]}  Bxf1 {[%clk 0:00:19]} 26. Kxf1 {[%clk 0:01:10]}  Rc3 {[%clk 0:00:18]} 27. Ke2 {[%clk 0:01:09]}  Rc2+ {[%clk 0:00:18]} 28. Ke3 {[%clk 0:01:07]}  Rc3+ {[%clk 0:00:18]} 29. Kf4 {[%clk 0:01:07]}  Ke7 {[%clk 0:00:17]} 30. d5 {[%clk 0:01:04]}  Rc2 {[%clk 0:00:16]} 31. Na5 {[%clk 0:01:05]}  b6 {[%clk 0:00:15]} 32. Nc6+ {[%clk 0:01:04]}  Kd7 {[%clk 0:00:14]} 33. Nxa7 {[%clk 0:01:05]}  Rc4 {[%clk 0:00:11]} 34. Nc6 {[%clk 0:01:05]}  Ra4 {[%clk 0:00:09]} 35. Rb1 {[%clk 0:01:05]}  Rxa2 {[%clk 0:00:09]} 36. Rxb6 {[%clk 0:01:05]}  Ra7 {[%clk 0:00:07]} 37. Nxa7 {[%clk 0:01:05]} 1-0


[Site "https://www.chess.com"]

[Event "Titled Tuesday Blitz November 07 Late 2023"]
[White "Carlsen, Magnus"]
[Black "Nihal Sarin"]
[WhiteFideId "1503014"]
[BlackFideId "25092340"]
[WhiteElo "3272"]
[BlackElo "3111"]
[Result "1-0"]
[Round "8"]
[TimeControl "180+1"]
[Date "2023.11.07"]
[WhiteClock "0:00:03"]
[BlackClock "0:00:00"]
[Board "1"]

1. h4 {[%clk 0:03:00]}  d5 {[%clk 0:02:58]} 2. d4 {[%clk 0:03:00]}  Nf6 {[%clk 0:02:57]} 3. e3 {[%clk 0:02:58]}  c5 {[%clk 0:02:56]} 4. c4 {[%clk 0:02:58]}  Nc6 {[%clk 0:02:50]} 5. Nc3 {[%clk 0:02:57]}  e6 {[%clk 0:02:46]} 6. Nf3 {[%clk 0:02:46]}  dxc4 {[%clk 0:02:44]} 7. Bxc4 {[%clk 0:02:42]}  a6 {[%clk 0:02:45]} 8. a4 {[%clk 0:02:40]}  Be7 {[%clk 0:02:40]} 9. O-O {[%clk 0:02:39]}  O-O {[%clk 0:02:40]} 10. dxc5 {[%clk 0:02:21]}  Qc7 {[%clk 0:02:36]} 11. b3 {[%clk 0:02:15]}  Bxc5 {[%clk 0:02:31]} 12. Bb2 {[%clk 0:02:15]}  b6 {[%clk 0:02:26]} 13. Ng5 {[%clk 0:02:09]}  h6 {[%clk 0:01:52]} 14. Nge4 {[%clk 0:02:09]}  Be7 {[%clk 0:01:52]} 15. Rc1 {[%clk 0:01:25]}  Bb7 {[%clk 0:01:50]} 16. Qe2 {[%clk 0:01:20]}  Rfd8 {[%clk 0:01:46]} 17. Nxf6+ {[%clk 0:01:13]}  Bxf6 {[%clk 0:01:47]} 18. Ne4 {[%clk 0:01:14]}  Bxb2 {[%clk 0:01:48]} 19. Qxb2 {[%clk 0:01:15]}  Qe5 {[%clk 0:01:43]} 20. Qxe5 {[%clk 0:01:15]}  Nxe5 {[%clk 0:01:44]} 21. Ng3 {[%clk 0:01:15]}  Nxc4 {[%clk 0:00:56]} 22. Rxc4 {[%clk 0:01:15]}  Rac8 {[%clk 0:00:56]} 23. Rfc1 {[%clk 0:01:13]}  Rxc4 {[%clk 0:00:55]} 24. Rxc4 {[%clk 0:01:13]}  Rd1+ {[%clk 0:00:54]} 25. Kh2 {[%clk 0:01:13]}  Rd2 {[%clk 0:00:43]} 26. e4 {[%clk 0:01:13]}  Rd7 {[%clk 0:00:15]} 27. Rb4 {[%clk 0:00:52]}  Rd6 {[%clk 0:00:16]} 28. e5 {[%clk 0:00:52]}  Rc6 {[%clk 0:00:14]} 29. a5 {[%clk 0:00:38]}  b5 {[%clk 0:00:14]} 30. Rd4 {[%clk 0:00:38]}  Rc2 {[%clk 0:00:11]} 31. Kg1 {[%clk 0:00:18]}  Bd5 {[%clk 0:00:11]} 32. b4 {[%clk 0:00:19]}  Kf8 {[%clk 0:00:11]} 33. f3 {[%clk 0:00:18]}  Ke7 {[%clk 0:00:11]} 34. Nh5 {[%clk 0:00:18]}  g5 {[%clk 0:00:11]} 35. hxg5 {[%clk 0:00:18]}  hxg5 {[%clk 0:00:12]} 36. Nf6 {[%clk 0:00:18]}  Bc6 {[%clk 0:00:10]} 37. Rd6 {[%clk 0:00:18]}  Rc4 {[%clk 0:00:07]} 38. Kf2 {[%clk 0:00:19]}  g4 {[%clk 0:00:03]} 39. Nxg4 {[%clk 0:00:17]}  Bd5 {[%clk 0:00:03]} 40. Rxa6 {[%clk 0:00:17]}  Rxb4 {[%clk 0:00:04]} 41. Ra7+ {[%clk 0:00:18]}  Kf8 {[%clk 0:00:04]} 42. Nh6 {[%clk 0:00:17]}  Rb2+ {[%clk 0:00:04]} 43. Kg3 {[%clk 0:00:15]}  b4 {[%clk 0:00:05]} 44. Rxf7+ {[%clk 0:00:12]}  Ke8 {[%clk 0:00:06]} 45. Rf4 {[%clk 0:00:11]}  b3 {[%clk 0:00:05]} 46. Rb4 {[%clk 0:00:11]}  Ra2 {[%clk 0:00:06]} 47. Ng4 {[%clk 0:00:12]}  Rxa5 {[%clk 0:00:04]} 48. Nf6+ {[%clk 0:00:11]}  Kf7 {[%clk 0:00:05]} 49. Kf4 {[%clk 0:00:06]}  Ra3 {[%clk 0:00:02]} 50. Nxd5 {[%clk 0:00:06]}  exd5 {[%clk 0:00:03]} 51. Kf5 {[%clk 0:00:06]}  Ke7 {[%clk 0:00:03]} 52. Rb7+ {[%clk 0:00:07]}  Kd8 {[%clk 0:00:03]} 53. Rb5 {[%clk 0:00:05]}  Kc7 {[%clk 0:00:02]} 54. Rxd5 {[%clk 0:00:06]}  Kc6 {[%clk 0:00:02]} 55. Rd1 {[%clk 0:00:04]}  Ra2 {[%clk 0:00:02]} 56. g4 {[%clk 0:00:04]}  Rf2 {[%clk 0:00:03]} 57. f4 {[%clk 0:00:04]}  b2 {[%clk 0:00:03]} 58. e6 {[%clk 0:00:04]}  Rd2 {[%clk 0:00:01]} 59. Re1 {[%clk 0:00:03]}  Re2 {[%clk 0:00:01]} 60. Rd1 {[%clk 0:00:02]}  Rd2 {[%clk 0:00:01]} 61. Rb1 {[%clk 0:00:02]}  Kd6 {[%clk 0:00:02]} 62. Kf6 {[%clk 0:00:02]}  Re2 {[%clk 0:00:00]} 63. f5 {[%clk 0:00:03]} 1-0


[Site "https://www.chess.com"]